fUSD/lending_fUSD_20251017
["ID","MTS","AMOUNT","RATE_DAILY","PERIOD"]
[391590588,1760681462752,-10448.26,0.00026919,2]
[391590589,1760681462766,-150.0,0.00026938,4]
[391590590,1760681462777,-150.0,0.00026938,4]
[391590591,1760681462788,-150.0,0.00026967,4]
[391590592,1760681462799,-1199.33,0.00026985,2]
[391590593,1760681462810,-1199.33,0.00026985,2]
[391590594,1760681462821,-1000.0,0.00026986,7]
[391590595,1760681462832,-5291.0,0.00026992,2]
[391590596,1760681462843,-34718.00088068,0.00027,30]
[391590597,1760681462855,-163.0,0.00027,2]
[391590598,1760681462865,-5888.0,0.0002702,7]
[391590599,1760681462876,-150.0,0.0002702,4]
[391590600,1760681462886,-5998.0,0.00027034,2]
[391590601,1760681462897,-150.0,0.00027041,4]
[391590602,1760681462907,-150.182,0.00027058,2]
[391590603,1760681462918,-150.0,0.00027058,2]
[391590604,1760681462928,-150.188,0.00027058,2]
[391590605,1760681462939,-159.128,0.00027058,2]
[391590606,1760681462949,-3408.0,0.00027058,2]
[391590607,1760681462960,-752.098,0.00027058,2]
[391590608,1760681462971,-1267.0,0.00027058,2]
[391590609,1760681462982,-2056.013,0.00027058,2]
[391590610,1760681462993,-1593.204,0.00027058,2]
[391590611,1760681463003,-575.941,0.00027058,2]
[391590612,1760681463014,-609.068,0.00027058,2]
[391590613,1760681463024,-1324.794,0.00027058,2]
[391590614,1760681463035,-816.0,0.00027058,2]
[391590615,1760681463046,-3955.898,0.00027058,2]
[391590616,1760681463056,-4031.0,0.00027058,2]
[391590617,1760681463067,-6445.0,0.00027058,2]
[391590618,1760681463077,-660.458,0.00027058,2]
[391590619,1760681463088,-150.0,0.00027065,4]
[391590620,1760681463099,-2958.78,0.00027082,2]
[391590621,1760681463110,-500.0,0.00027092,2]
[391590622,1760681463121,-150.0,0.00027094,4]
[391590623,1760681463132,-359.76179104,0.00027114,2]
[391590624,1760681463143,-309.29654756,0.00027114,2]
[391590625,1760681463154,-150.0,0.00027114,4]
[391590626,1760681463164,-5010.91101412,0.0002712,2]
[391590627,1760681463174,-680.50582833,0.00027123,13]
[391590628,1760681463185,-150.0,0.00027129,4]
[391590629,1760681463195,-35360.573179,0.00027154,2]
[391590630,1760681463206,-168.17,0.00027156,2]
[391590631,1760681463217,-35360.573179,0.00027158,2]
[391590632,1760681463228,-466.26426758,0.00027164,2]
[391590633,1760681463240,-3292.0,0.00027177,2]
[391590634,1760681463252,-191.80999873,0.00027181,2]
[391590635,1760681463262,-375.14335271,0.00027184,2]
[391590636,1760681463273,-155.29759758,0.00027187,2]
[391590637,1760681463283,-150.0,0.00027188,4]
[391590638,1760681463294,-12703.26888293,0.00027193,2]
[391590639,1760681463304,-1668.20496452,0.00027197,2]
[391590640,1760681463314,-5888.0,0.00027199,2]
[391590641,1760681463325,-198.45117234,0.000272,2]
[391590642,1760681463335,-35360.573179,0.00027202,2]
[391590643,1760681463347,-232.47443139,0.00027203,2]
[391590644,1760681463357,-232.47443139,0.00027208,2]
[391590645,1760681463367,-351.99935416,0.00027216,2]
[391590646,1760681463378,-191.80999873,0.00027218,2]
[391590647,1760681463392,-750.28670541,0.0002722,2]
[391590648,1760681463402,-750.28670541,0.0002722,2]
[391590649,1760681463413,-351.99935415,0.00027222,2]
[391590650,1760681463423,-191.80999873,0.00027224,2]
[391590651,1760681463434,-150.0,0.00027225,4]
[391590652,1760681463444,-150.0,0.00027225,4]
[391590653,1760681463455,-245060.10011452,0.00027226,2]
[391590654,1760681463467,-245060.10011452,0.00027226,2]
[391590655,1760681463478,-232.47443139,0.00027227,2]
[391590656,1760681463488,-1668.20496452,0.00027227,2]
[391590657,1760681463498,-155.29759758,0.00027228,2]
[391590658,1760681463508,-303.04261065,0.00027229,2]
[391590659,1760681463519,-176.03,0.00027234,2]
[391590660,1760681463530,-150.0,0.00027234,2]
[391590661,1760681463540,-150.0,0.00027234,2]
[391590662,1760681463551,-351.99935415,0.00027235,2]
[391590663,1760681463561,-150.0,0.00027235,2]
[391590664,1760681463571,-178.15,0.00027235,2]
[391590665,1760681463582,-150.0,0.00027235,2]
[391590666,1760681463593,-176.05,0.00027235,2]
[391590667,1760681463603,-202.64,0.00027235,2]
[391590668,1760681463613,-150.0,0.00027235,2]
[391590669,1760681463625,-150.0,0.00027235,2]
[391590670,1760681463635,-150.0,0.00027235,2]
[391590671,1760681463645,-832.43,0.00027235,2]
[391590672,1760681463654,-546.7,0.00027235,2]
[391590673,1760681463665,-546.7,0.00027235,2]
[391590674,1760681463674,-546.7,0.00027235,2]
[391590675,1760681463684,-546.7,0.00027235,2]
[391590676,1760681463695,-546.7,0.00027235,2]
[391590677,1760681463705,-351.99935415,0.00027244,2]
[391590678,1760681463716,-351.99935416,0.00027245,2]
[391590679,1760681463726,-1110.77925484,0.0002725,2]
[391590680,1760681463735,-232.47443139,0.00027257,2]
[391590681,1760681463770,-1110.77925484,0.00027258,2]
[391590682,1760681463780,-198.45117234,0.00027258,2]
[391590683,1760681463791,-232.47443139,0.00027258,2]
[391590684,1760681463801,-232.47443139,0.00027259,2]
[391590685,1760681463811,-232.47443139,0.00027261,2]
[391590686,1760681463821,-150.0,0.00027261,4]
[391590687,1760681463831,-232.47443139,0.00027266,2]
[391590688,1760681463841,-198.45117234,0.00027267,2]
[391590689,1760681463851,-375.14335271,0.00027268,2]
[391590690,1760681463862,-155.29759758,0.00027268,2]
[391590691,1760681463872,-851.89506372,0.00027269,2]
[391590692,1760681463882,-750.28670541,0.0002727,2]
[391590693,1760681463892,-750.28670541,0.0002727,2]
[391590694,1760681463902,-155.29759758,0.00027271,2]
[391590695,1760681463913,-375.14335271,0.00027272,2]
[391590696,1760681463924,-851.89506372,0.00027272,2]
[391590697,1760681463934,-351.99935415,0.00027273,2]
[391590698,1760681463945,-375.14335271,0.00027274,2]
[391590699,1760681463956,-35360.573179,0.00027277,2]
[391590700,1760681463967,-1110.77925484,0.00027278,2]
[391590701,1760681463977,-191.80999873,0.00027281,2]
[391590702,1760681463987,-1668.20496452,0.00027285,2]
[391590703,1760681463998,-351.386362,0.000273,2]
[391590704,1760681464008,-150.0,0.0002732,4]
[391590705,1760681464019,-150.0,0.00027335,4]
[391590706,1760681464029,-5800.0,0.00027338,2]
[391590707,1760681464040,-5888.0,0.00027345,2]
[391590708,1760681464050,-5800.0,0.00027346,2]
[391590709,1760681464060,-5800.0,0.00027355,2]
[391590710,1760681464071,-150.0,0.00027355,4]
[391590711,1760681464082,-5800.0,0.00027363,2]
[391590712,1760681464093,-5800.0,0.00027372,2]
[391590713,1760681464103,-5800.0,0.0002738,2]
[391590714,1760681464513,-150.0,0.00027384,4]
[391590715,1760681464525,-5800.0,0.00027389,2]
[391590716,1760681464536,-4043.05236923,0.0002739,2]
[391590717,1760681464545,-7986.64860146,0.0002739,2]
[391590718,1760681464555,-4316.43457287,0.0002739,7]
[391590719,1760681464566,-3188.02336086,0.0002739,2]
[391590720,1760681464576,-500.0,0.00027397,10]
[391590721,1760681464587,-5800.0,0.00027397,2]
[391590722,1760681464597,-5800.0,0.00027397,2]
[391590723,1760681464607,-5800.0,0.00027397,2]
[391590724,1760681464616,-1702.4973413,0.00027397,2]
[391590725,1760681464627,-500.0,0.00027397,60]
[391590726,1760681464636,-300.0,0.00027397,2]
[391590727,1760681464647,-740.95879841,0.00027397,2]
[391590728,1760681464657,-160.0050115,0.00027397,2]
[391590729,1760681464667,-500.01049459,0.00027397,5]
[391590730,1760681464677,-150.0,0.00027408,7]
[391590731,1760681464687,-150.0,0.00027429,7]
[391590732,1760681464697,-1425.0,0.0002745,2]
[391590733,1760681464707,-645.95838079,0.00027452,60]
[391590734,1760681464716,-1199.33,0.00027478,2]
[391590735,1760681464727,-1199.33,0.00027478,2]
[391590736,1760681464738,-150.0,0.00027482,7]
[391590737,1760681464748,-799.30830472,0.0002749,2]
[391590738,1760681464758,-197.74905643,0.000275,2]
[391590739,1760681464768,-540.20002775,0.000275,2]
[391590740,1760681464778,-150.0,0.00027511,7]
[391590741,1760681464788,-150.0,0.00027511,7]
[391590742,1760681464798,-484.0,0.00027521,2]
[391590743,1760681464810,-2459.0,0.00027533,2]
[391590744,1760681464820,-150.0,0.00027555,7]
[391590745,1760681464831,-12683.27346667,0.0002759,2]
[391590746,1760681464841,-150.0,0.00027615,7]
[391590747,1760681464851,-150.0,0.00027629,7]
[391590748,1760681464861,-695.27,0.00027635,2]
[391590749,1760681464871,-695.27,0.00027635,2]
[391590750,1760681464881,-695.27,0.00027635,2]
[391590751,1760681464892,-695.27,0.00027635,2]
[391590752,1760681464902,-500.0,0.0002767,10]
[391590753,1760681464912,-335.88,0.00027671,7]
[391590754,1760681464922,-1425.0,0.00027676,2]
[391590755,1760681464932,-150.0,0.00027702,7]
[391590756,1760681464942,-150.0,0.00027702,7]
[391590757,1760681464952,-150.0,0.00027702,7]
[391590758,1760681464963,-150.0,0.00027702,7]
[391590759,1760681464975,-150.0,0.00027702,7]
[391590760,1760681464986,-150.0,0.00027702,7]
[391590761,1760681464997,-150.0,0.00027702,7]
[391590762,1760681465007,-191.76543618,0.00027721,8]
[391590763,1760681465017,-5291.0,0.00027723,7]
[391590764,1760681465027,-150.0,0.00027776,7]
[391590765,1760681465037,-1199.18,0.00027807,2]
[391590766,1760681465047,-1199.33,0.00027807,2]
[391590767,1760681465057,-1199.33,0.00027807,2]
[391590768,1760681465067,-1199.33,0.00027807,2]
[391590769,1760681465077,-1199.33,0.00027807,2]
[391590770,1760681465089,-2398.56,0.00027807,2]
[391590771,1760681465099,-1199.33,0.00027807,2]
[391590772,1760681465110,-484.0,0.00027809,2]
[391590773,1760681465120,-500.0,0.00027824,120]
[391590774,1760681465130,-2000.0,0.00027824,120]
[391590775,1760681465140,-500.0,0.00027824,120]
[391590776,1760681465150,-500.0,0.00027824,120]
[391590777,1760681465160,-673.25585197,0.00027834,2]
[391590778,1760681465172,-150.0,0.00027839,7]
[391590779,1760681465182,-150.0,0.00027849,7]
[391590780,1760681465193,-150.0,0.00027876,7]
[391590781,1760681465204,-150.0,0.00027893,7]
[391590782,1760681465214,-300.0,0.00027902,33]
[391590783,1760681465225,-150.0,0.00027923,7]
[391590784,1760681465235,-514.30220968,0.00027944,10]
[391590785,1760681465245,-335.88,0.00027945,8]
[391590786,1760681465255,-1108.0,0.00027973,2]
[391590787,1760681465266,-150.0,0.00027996,7]
[391590788,1760681465277,-197337.30824859,0.00028,4]
[391590789,1760681465287,-188.0,0.00028,2]
[391590790,1760681465298,-303.0,0.00028,7]
[391590791,1760681465308,-163.0,0.00028,2]
[391590792,1760681465319,-1500.0,0.00028,28]
[391590793,1760681465329,-1500.0,0.00028,28]
[391590794,1760681465339,-1500.0,0.00028,28]
[391590795,1760681465350,-1500.0,0.00028,28]
[391590796,1760681465360,-1500.0,0.00028,28]
[391590797,1760681465370,-1500.0,0.00028,28]
[391590798,1760681465381,-1500.0,0.00028,28]
[391590799,1760681465393,-1500.0,0.00028,28]
[391590800,1760681465404,-1500.0,0.00028,28]
[391590801,1760681465415,-1500.0,0.00028,28]
[391590802,1760681465425,-1500.0,0.00028,28]
[391590803,1760681465434,-1500.0,0.00028,28]
[391590804,1760681465444,-1500.0,0.00028,28]
[391590805,1760681465454,-1500.0,0.00028,28]
[391590806,1760681465464,-1500.0,0.00028,28]
[391590807,1760681465474,-1500.0,0.00028,28]
[391590808,1760681465484,-1500.0,0.00028,28]
[391590809,1760681465494,-1500.0,0.00028,28]
[391590810,1760681465504,-1500.0,0.00028,28]
[391590811,1760681465515,-1500.0,0.00028,28]
[391590812,1760681465524,-821.364198,0.00028,28]
[391590813,1760681465534,-10000.0,0.00028,2]
[391590814,1760681465544,-1001.11291789,0.00028,2]
[391590815,1760681465555,-150.0,0.00028021,7]
[391590816,1760681465564,-168.24,0.00028057,2]
[391590817,1760681465573,-168.24,0.00028057,2]
[391590818,1760681465583,-150.0,0.0002807,7]
[391590819,1760681465593,-150.0,0.00028084,7]
[391590820,1760681465603,-150.0,0.00028084,7]
[391590821,1760681465612,-303.04261065,0.00028116,2]
[391590822,1760681465622,-1199.33,0.00028136,2]
[391590823,1760681465632,-1199.33,0.00028136,2]
[391590824,1760681465642,-1199.33,0.00028136,2]
[391590825,1760681465651,-2398.7,0.00028136,2]
[391590826,1760681465661,-1203.71,0.00028136,2]
[391590827,1760681465671,-1199.33,0.00028136,2]
[391590828,1760681465681,-1199.33,0.00028136,2]
[391590829,1760681465692,-150.0,0.00028136,7]
[391590830,1760681465703,-150.0,0.00028143,7]
[391590831,1760681465713,-150.0,0.0002818,7]
[391590832,1760681465723,-150.0,0.0002818,7]
[391590833,1760681465733,-1928.0,0.000282,2]
[391590834,1760681465742,-209.78,0.00028203,2]
[391590835,1760681465751,-150.0,0.00028217,7]
[391590836,1760681465761,-335.88,0.00028219,9]
[391590837,1760681465772,-1400.0,0.00028244,7]
[391590838,1760681465781,-1183.52592395,0.00028248,2]
[391590839,1760681465791,-150.0,0.00028248,7]
[391590840,1760681465801,-2222.0,0.00028259,2]
[391590841,1760681465811,-166.66,0.00028263,2]
[391590842,1760681465821,-150.0,0.00028275,7]
[391590843,1760681465832,-150.0,0.0002829,7]
[391590844,1760681465842,-195.72456545,0.00028296,20]
[391590845,1760681465852,-150.0,0.00028339,7]
[391590846,1760681465862,-150.0,0.00028364,7]
[391590847,1760681465872,-150.0,0.00028397,7]
[391590848,1760681465883,-1000.0,0.000284,2]
[391590849,1760681465892,-1425.0,0.00028419,2]
[391590850,1760681465902,-150.0,0.00028437,7]
[391590851,1760681465912,-500.0,0.00028462,2]
[391590852,1760681465923,-150.0,0.00028466,7]
[391590853,1760681465933,-373.07297731,0.00028483,2]
[391590854,1760681465943,-320.74051982,0.00028483,2]
[391590855,1760681465954,-745.65223616,0.00028485,2]
[391590856,1760681465963,-733.74431601,0.00028485,2]
[391590857,1760681465978,-335.88,0.00028493,10]
[391590858,1760681465994,-150.0,0.00028511,7]
[391590859,1760681466005,-3000.0,0.00028518,7]
[391590860,1760681466015,-211.54599045,0.00028527,10]
[391590861,1760681466026,-2000.0,0.00028537,2]
[391590862,1760681466036,-150.0,0.00028584,7]
[391590863,1760681466046,-474.58,0.00028594,2]
[391590864,1760681466056,-474.58,0.00028594,2]
[391590865,1760681466067,-994402.35173478,0.000286,5]
[391590866,1760681466084,-35980.42426346,0.000286,5]
[391590867,1760681466095,-1199.52,0.00028629,2]
[391590868,1760681466107,-1000.0,0.00028632,2]
[391590869,1760681466118,-161206.31709097,0.00028647,2]
[391590870,1760681466128,-290.38939256,0.00028658,7]
[391590871,1760681466139,-287.44751312,0.00028658,7]
[391590872,1760681466150,-230.19453688,0.00028658,7]
[391590873,1760681466160,-184.08724656,0.00028658,7]
[391590874,1760681466170,-229.07490955,0.00028658,7]
[391590875,1760681466181,-150.0,0.00028658,7]
[391590876,1760681466191,-249.00000001,0.00028658,7]
[391590877,1760681466202,-150.0,0.00028658,7]
[391590878,1760681466212,-150.0,0.00028658,7]
[391590879,1760681466221,-155.07678216,0.00028658,7]
[391590880,1760681466231,-1425.0,0.00028669,2]
[391590881,1760681466240,-484.0,0.00028673,7]
[391590882,1760681466250,-500.0,0.00028679,120]
[391590883,1760681466259,-2000.0,0.00028679,120]
[391590884,1760681466270,-150.0,0.0002868,2]
[391590885,1760681466279,-150.0,0.0002868,2]
[391590886,1760681466290,-1000.0,0.00028699,2]
[391590887,1760681466300,-33443.48,0.000287,2]
[391590888,1760681466310,-1000.0,0.00028743,2]
[391590889,1760681466319,-2003.0,0.00028748,2]
[391590890,1760681466329,-1425.0,0.00028761,2]
[391590891,1760681466338,-500.0,0.00028763,5]
[391590892,1760681466348,-1000.0,0.00028763,2]
[391590893,1760681466358,-335.88,0.00028767,11]
[391590894,1760681466368,-1200.0,0.00028792,7]
[391590895,1760681466377,-673.25585197,0.00028801,2]
[391590896,1760681466389,-1425.0,0.00028824,2]
[391590897,1760681466399,-300.33,0.00028826,2]
[391590898,1760681466408,-1000.0,0.00028837,2]
[391590899,1760681466418,-184.24072926,0.00028849,2]
[391590900,1760681466427,-184.37177268,0.00028849,2]
[391590901,1760681466438,-184.37177267,0.00028849,2]
[391590902,1760681466448,-184.37177267,0.00028849,2]
[391590903,1760681466459,-184.37177267,0.00028849,2]
[391590904,1760681466468,-184.37177267,0.00028849,2]
[391590905,1760681466479,-5888.0,0.00028908,2]
[391590906,1760681466489,-500.0,0.00028917,10]
[391590907,1760681466499,-1425.0,0.00028957,2]
[391590908,1760681466509,-184.24072926,0.00028959,2]
[391590909,1760681466519,-209.0,0.00029,30]
[391590910,1760681466529,-523.0,0.00029,30]
[391590911,1760681466539,-1000.87258626,0.00029,2]
[391590912,1760681466549,-209.0,0.00029,30]
[391590913,1760681466559,-628.0,0.00029,30]
[391590914,1760681466569,-189.0,0.00029,30]
[391590915,1760681466578,-202.87,0.00029,120]
[391590916,1760681466588,-188.0,0.00029,30]
[391590917,1760681466598,-163.0,0.00029,30]
[391590918,1760681466608,-303.04261065,0.00029003,15]
[391590919,1760681466618,-607.99898917,0.00029037,5]
[391590920,1760681466628,-335.88,0.00029041,12]
[391590921,1760681466638,-1444.0,0.00029041,120]
[391590922,1760681466648,-1425.0,0.00029048,2]
[391590923,1760681466658,-1400.0,0.00029066,7]
[391590924,1760681466667,-184.24072926,0.00029068,2]
[391590925,1760681466677,-1000.0,0.00029074,2]
[391590926,1760681466688,-163.85,0.000291,7]
[391590927,1760681466697,-163.86,0.000291,7]
[391590928,1760681466707,-491.56,0.000291,7]
[391590929,1760681466716,-167.77,0.000291,7]
[391590930,1760681466728,-184.37177268,0.00029151,2]
[391590931,1760681466737,-184.37177267,0.00029151,2]
[391590932,1760681466747,-184.37177267,0.00029151,2]
[391590933,1760681466757,-184.37177267,0.00029151,2]
[391590934,1760681466767,-184.37177267,0.00029151,2]
[391590935,1760681466777,-1425.0,0.00029169,2]
[391590936,1760681466787,-184.24072926,0.00029178,2]
[391590937,1760681466797,-5888.0,0.00029238,7]
[391590938,1760681466807,-249202.51771053,0.00029251,7]
[391590939,1760681466817,-150.0,0.00029268,120]
[391590940,1760681466827,-150.0,0.00029279,120]
[391590941,1760681466836,-1199.33,0.00029286,2]
[391590942,1760681466846,-150.0,0.00029288,120]
[391590943,1760681466856,-335.88,0.00029315,13]
[391590944,1760681466866,-450.0,0.00029315,16]
[391590945,1760681466876,-184.24072926,0.00029315,2]
[391590946,1760681466886,-231.38063895,0.00029332,11]
[391590947,1760681466896,-3000.0,0.0002934,7]
[391590948,1760681466905,-150.0,0.00029355,120]
[391590949,1760681466916,-1000.0,0.00029367,2]
[391590950,1760681466926,-1000.0,0.00029374,2]
[391590951,1760681466935,-2000.0,0.00029386,120]
[391590952,1760681466946,-539.93,0.00029395,15]
[391590953,1760681466955,-539.93,0.00029395,15]
[391590954,1760681466966,-539.93,0.00029395,15]
[391590955,1760681467053,-539.93,0.00029395,15]
[391590956,1760681467063,-33443.48,0.000294,2]
[391590957,1760681467073,-150.0,0.00029418,120]
[391590958,1760681467083,-1425.0,0.00029421,2]
[391590959,1760681467093,-184.24072926,0.00029425,2]
[391590960,1760681467103,-150.0,0.00029429,120]
[391590961,1760681467113,-1425.0,0.0002944,2]
[391590962,1760681467122,-1199.37,0.00029451,2]
[391590963,1760681467132,-184.37177268,0.00029479,2]
[391590964,1760681467142,-184.37177267,0.00029479,2]
[391590965,1760681467151,-184.37177267,0.00029479,2]
[391590966,1760681467161,-184.37177267,0.00029479,2]
[391590967,1760681467170,-184.37177267,0.00029479,2]
[391590968,1760681467180,-3901.50323193,0.000295,120]
[391590969,1760681467190,-32545.79,0.000295,7]
[391590970,1760681467204,-824.312,0.00029517,30]
[391590971,1760681467224,-184.24072926,0.00029534,2]
[391590972,1760681467246,-150.0,0.00029554,120]
[391590973,1760681467257,-150.0,0.00029571,120]
[391590974,1760681467267,-335.88,0.00029589,14]
[391590975,1760681467279,-1200.0,0.00029614,7]
[391590976,1760681467290,-500.0,0.00029628,120]
[391590977,1760681467300,-184.24072926,0.00029644,2]
[391590978,1760681467309,-539.93,0.00029669,15]
[391590979,1760681467320,-539.93,0.00029669,15]
[391590980,1760681467331,-150.0,0.00029678,120]
[391590981,1760681467340,-500.0,0.00029679,120]
[391590982,1760681467350,-3522.04653593,0.000297,3]
[391590983,1760681467359,-150.0,0.00029707,120]
[391590984,1760681467370,-2757.0,0.00029709,2]
[391590985,1760681467380,-207.06072452,0.00029736,2]
[391590986,1760681467395,-150.0,0.00029738,120]
[391590987,1760681467405,-184.24072926,0.00029753,2]
[391590988,1760681467415,-152.0,0.0002976,4]
[391590989,1760681467424,-673.25585197,0.00029767,2]
[391590990,1760681467433,-150.0,0.000298,120]
[391590991,1760681467442,-150.0,0.00029805,120]
[391590992,1760681467452,-184.37177268,0.00029808,2]
[391590993,1760681467462,-184.37177267,0.00029808,2]
[391590994,1760681467471,-184.37177267,0.00029808,2]
[391590995,1760681467481,-184.37177267,0.00029808,2]
[391590996,1760681467490,-184.37177267,0.00029808,2]
[391590997,1760681467500,-999.99,0.00029815,2]
[391590998,1760681467509,-1000.0,0.0002982,2]
[391590999,1760681467519,-500.0,0.00029832,2]
[391591000,1760681467528,-521.35658989,0.00029852,2]
[391591001,1760681467538,-477.91193198,0.00029852,2]
[391591002,1760681467547,-150.0,0.00029857,120]
[391591003,1760681467557,-335.88,0.00029863,15]
[391591004,1760681467566,-1400.0,0.00029888,7]
[391591005,1760681467575,-303.04261065,0.0002989,15]
[391591006,1760681467585,-184.24072926,0.0002989,2]
[391591007,1760681467594,-160.98164678,0.000299,2]
[391591008,1760681467603,-1183.52592395,0.000299,2]
[391591009,1760681467613,-544.69262723,0.000299,2]
[391591010,1760681467622,-2241.0,0.00029919,2]
[391591011,1760681467632,-1000.0,0.00029932,2]
[391591012,1760681467641,-1000.0,0.00029942,2]
[391591013,1760681467651,-539.93,0.00029943,15]
[391591014,1760681467661,-539.93,0.00029943,15]
[391591015,1760681467671,-1000.0,0.00029988,4]
[391591016,1760681467681,-2798.0,0.00029989,36]
[391591017,1760681467690,-9847.58691136,0.0003,2]
[391591018,1760681467700,-200.0,0.0003,120]
[391591019,1760681467710,-150.0,0.0003,2]
[391591020,1760681467719,-270.81407796,0.0003,7]
[391591021,1760681467730,-1009.03437,0.0003,120]
[391591022,1760681467739,-209.0,0.0003,30]
[391591023,1760681467748,-523.0,0.0003,30]
[391591024,1760681467757,-1337.57733962,0.0003,5]
[391591025,1760681467767,-32542.82899312,0.0003,13]
[391591026,1760681467777,-209.0,0.0003,30]
[391591027,1760681467787,-628.0,0.0003,30]
[391591028,1760681467797,-189.0,0.0003,30]
[391591029,1760681467806,-188.0,0.0003,30]
[391591030,1760681467816,-188.0,0.0003,2]
[391591031,1760681467826,-241137.61497463,0.0003,5]
[391591032,1760681467835,-163048.553917,0.0003,5]
[391591033,1760681468228,-2262.0,0.0003,5]
[391591034,1760681468240,-3085.33404072,0.0003,5]
[391591035,1760681468252,-7149.21082,0.0003,5]
[391591036,1760681468389,-345.37052734,0.00022573,2]
[391591037,1760681468471,-18.70399873,0.00022573,2]
[391591038,1760681468494,-135.92547393,0.00022573,2]
[391591039,1760681468504,-173.83131829,0.00022573,2]
[391591040,1760681468666,-151.0,0.00015812,2]
[391591041,1760681468677,-397.13194762,0.00022573,2]
[391591042,1760681468688,-500.0,0.00023252,2]
[391591043,1760681468699,-448.5837126,0.00023252,2]
[391591044,1760681468712,-322.82581489,0.00023252,2]
[391591045,1760681468723,-500.0,0.00023252,2]
[391591046,1760681468738,-231.64008222,0.00023252,2]
[391591047,1760681468749,-500.0,0.00023252,2]
[391591048,1760681468761,-500.0,0.00023252,2]
[391591049,1760681468771,-403.4537619,0.00023252,2]
[391591050,1760681468782,-255.388897,0.0002338,7]
[391591051,1760681468792,-878.111991,0.0002338,7]
[391591052,1760681468802,-878.111991,0.0002338,7]
[391591053,1760681468812,-878.111991,0.0002338,7]
[391591054,1760681468822,-151.0,0.0002338,7]
[391591055,1760681468832,-878.111991,0.0002338,7]
[391591056,1760681468842,-878.111991,0.0002338,7]
[391591057,1760681468852,-878.111991,0.0002338,7]
[391591058,1760681468862,-878.111991,0.0002338,7]
[391591059,1760681468872,-255.388897,0.00024376,7]
[391591060,1760681468883,-878.111991,0.00024376,7]
[391591061,1760681468893,-878.111991,0.00024376,7]
[391591062,1760681468903,-878.111991,0.00024376,7]
[391591063,1760681468913,-878.111991,0.00024376,7]
[391591064,1760681468923,-474.79,0.0002455,2]
[391591065,1760681468932,-940.79370339,0.00024596,2]
[391591066,1760681468943,-255.388897,0.000248,7]
[391591067,1760681468952,-878.111991,0.000248,7]
[391591068,1760681468962,-878.111991,0.000248,7]
[391591069,1760681468972,-878.111991,0.000248,7]
[391591070,1760681468984,-255.388903,0.000249,7]
[391591071,1760681468994,-878.111991,0.000249,7]
[391591072,1760681469004,-878.111991,0.000249,7]
[391591073,1760681469014,-878.111991,0.000249,7]
[391591074,1760681469024,-940.79370339,0.00025657,2]
[391591075,1760681469034,-180.66,0.00027397,10]
[391591076,1760681469044,-695.27,0.00027635,2]
[391591077,1760681469054,-308.0210857,0.00027664,2]
[391591078,1760681469065,-207.06072452,0.00027933,2]
[391591079,1760681469075,-252920.64625835,0.0003,5]
[391591080,1760681469089,-76375.31590649,0.0003,5]
[391591081,1760681469102,-426.26417735,0.0003,5]
[391591098,1760681513818,775.22,0.00025055,120]
[391591126,1760682036985,150.0,0.00025914,120]
[391591127,1760682037107,1500.0,0.00025914,120]
[391591132,1760682361679,5355.79243127,8e-05,2]
[391591134,1760682422531,-300.02032534,0.00014999,2]
[391591138,1760682427854,-199.97967466,0.00014999,2]